fUSD/lending_fUSD_20240813
["ID","MTS","AMOUNT","RATE_DAILY","PERIOD"]
[334774576,1723547443927,-9800.24023505,0.00011,2]
[334774578,1723547443939,-1165.0,0.00011,2]
[334774582,1723547443978,-1529.61921,0.00011,2]
[334774584,1723547443991,-12121.81620916,0.00011,2]
[334774775,1723547446225,-550.0,0.00011,2]
[334774779,1723547446254,-31613.68526032,0.00011,2]
[334774782,1723547446280,-3873.9264371,0.00011,2]
[334774785,1723547446292,-457.57599352,0.00011,2]
[334774787,1723547446303,-2541.60576451,0.00011,2]
[334774789,1723547446315,-925.46051709,0.00011,2]
[334774791,1723547446326,-312.64,0.00011,2]
[334774793,1723547446337,-8320.028927,0.00011,2]
[334776419,1723548515829,297.45,9.396e-05,2]
[334776421,1723548516548,-1133.44301925,0.00010369,2]
[334776422,1723548516592,-436.78318838,0.000109,2]
[334776448,1723548632236,-300.0,0.00010899,2]
[334776449,1723548632247,-563.21681162,0.000109,2]
[334776450,1723548632256,-636.78318838,0.000109,2]
[334776451,1723548632268,-1476.78718249,0.000109,2]
[334776452,1723548632280,-887.87559025,0.000109,2]
[334776453,1723548632289,-322.06855872,0.000109,2]
[334776454,1723548632299,-13013.64355072,0.0001099,2]
[334776455,1723548638291,-1307.58082005,0.0001099,2]
[334776496,1723548640230,-4533.07358047,0.0001099,2]
[334776497,1723548640242,-54694.29654211,0.0001099,2]
[334776498,1723548640254,-3095.82955114,0.0001099,2]
[334776499,1723548640265,-662.68309162,0.0001099,2]
[334776500,1723548640277,-926.86094104,0.0001099,2]
[334776501,1723548640288,-293.945,0.0001099,2]
[334776502,1723548640457,-4503.46066958,0.0001099,2]
[334776503,1723548640468,-477.30195565,0.0001099,2]
[334776504,1723548640480,-558.89350208,0.0001099,2]
[334776505,1723548640491,-982.24203917,0.0001099,2]
[334776506,1723548640531,-11736.07514393,0.0001099,2]
[334776508,1723548640541,-7619.48072836,0.00010998,2]
[334776510,1723548640550,-218.36207156,0.00010999,2]
[334776512,1723548640559,-5911.80443329,0.00010999,2]
[334776514,1723548640568,-500.0,0.00010999,2]
[334776516,1723548640578,-255.27523136,0.00010999,2]
[334776518,1723548640589,-113151.96317561,0.00011,2]
[334776521,1723548640606,-507.04536225,0.00011,2]
[334776640,1723548643217,-61206.702,0.00011,2]
[334776646,1723548646302,-2412.23203474,0.00011,2]
[334776647,1723548646375,-415.0,0.00011,2]
[334776648,1723548646448,-5022.72191446,0.00011,2]
[334776649,1723548646460,-2133.07562019,0.00011,2]
[334776650,1723548646471,-493.70431179,0.00011,2]
[334776651,1723548646516,-626.08111507,0.00011,2]
[334776653,1723549018203,226.24373766,8.219e-05,2]
[334776654,1723549018247,80.79626234,8.219e-05,2]
[334776657,1723549085983,-215.85,9.911e-05,2]
[334776658,1723549086014,-272.52,0.00010082,2]
[334776659,1723549086047,-300.0,0.00010084,2]
[334776660,1723549086088,-3331.63,0.00010085,2]
[334776661,1723549344031,3500.38288854,0.00025,60]
[334776665,1723549491807,291.68,8.219e-05,2]
[334776697,1723549832184,-589.02208306,9.819e-05,2]
[334776698,1723549832198,-646.59791694,9.819e-05,2]
[334776699,1723549832209,-150.0,9.888e-05,2]
[334776700,1723549832221,-286.22394196,9.895e-05,2]
[334776701,1723549832235,-162.13605804,9.895e-05,2]
[334776702,1723549832245,-250.0,9.895e-05,2]
[334776703,1723549832257,-434.69404252,9.919e-05,2]
[334776704,1723549832270,-1133.16129937,9.919e-05,2]
[334776705,1723549832284,-990.05544266,9.919e-05,2]
[334776706,1723549832297,-1425.76150624,9.919e-05,2]
[334776707,1723549832316,-1451.24090158,9.919e-05,2]
[334776708,1723549832328,-793.35,9.919e-05,2]
[334776709,1723549832339,-1421.18809713,9.919e-05,2]
[334776710,1723549832351,-750.26546194,9.919e-05,2]
[334776711,1723549832363,-1266.60175907,9.919e-05,2]
[334776712,1723549832374,-2084.775,9.919e-05,2]
[334776713,1723549832386,-5395.38119057,9.919e-05,2]
[334776714,1723549832398,-12559.51491428,9.919e-05,2]
[334776715,1723549832413,-4121.07153573,9.919e-05,2]
[334776716,1723549832426,-15291.96718558,9.919e-05,2]
[334776717,1723549832436,-272.52,9.92e-05,2]
[334776718,1723549832447,-300.0,9.94e-05,2]
[334776719,1723549832456,-150.0,9.94e-05,2]
[334776720,1723549832466,-3465.55,9.941e-05,2]
[334776721,1723549832476,-328.32,9.941e-05,2]
[334776722,1723549832486,-2850.10201785,0.00010085,2]
[334776723,1723549832497,-614.92226377,0.00010085,2]
[334776724,1723549832509,-7916.14571838,0.00010085,2]
[334776726,1723549832518,-300.0,0.000103,3]
[334776728,1723549832527,-299.99,0.000103,2]
[334776730,1723549832537,-457.42,0.000103,2]
[334776731,1723549832545,-574.18,0.000103,2]
[334776733,1723549832555,-700.0,0.000104,3]
[334776735,1723549832565,-291.68,0.00010472,2]
[334776736,1723549832574,-2249.82080479,0.00010499,2]
[334776737,1723549832585,-130.59919521,0.00010499,2]
[334776738,1723549832595,-428.22,0.00010499,2]
[334776739,1723549832604,-298.46,0.00010499,2]
[334776740,1723549832614,-499.99,0.00010499,2]
[334776741,1723549832624,-698.37,0.00010499,2]
[334776742,1723549832639,-1100.0,0.000105,3]
[334776743,1723549832649,-1000.0,0.00010531,2]
[334776744,1723549832658,-1500.0,0.000106,3]
[334776745,1723549832667,-1900.0,0.000107,3]
[334776746,1723549832677,-6.30189156,0.000108,2]
[334776747,1723549832693,-207.04150844,0.000108,2]
[334776748,1723549832702,-144.8570501,0.000108,2]
[334776749,1723549832713,-1540.5,0.000108,2]
[334776750,1723549832724,-3816.2091499,0.000108,2]
[334776751,1723549832734,-300.0,0.000108,3]
[334776752,1723549832743,-1387.5566,0.00010899,2]
[334776753,1723549832752,-1696.2184,0.000109,2]
[334776754,1723549832762,-236.85324323,0.000109,2]
[334776755,1723549832773,-1103.55713475,0.000109,2]
[334776756,1723549832785,-518.40021227,0.000109,2]
[334776757,1723549832796,-228.49490975,0.000109,2]
[334776758,1723549832805,-14079.9361,0.000109,2]
[334776759,1723549832815,-560.2683,0.000109,2]
[334776760,1723549832824,-1000.0,0.000109,2]
[334776761,1723549832833,-6498.0575,0.000109,2]
[334776762,1723549832842,-223.21652696,0.000109,2]
[334776763,1723549832851,-300.0,0.000109,3]
[334776764,1723549832860,-167.28929297,0.000109,2]
[334776765,1723549832869,-365.88477937,0.000109,2]
[334776766,1723549832881,-321.32459988,0.000109,2]
[334776767,1723549832890,-2000.0,0.00010959,2]
[334776768,1723549832900,-150.0,0.00010959,2]
[334776769,1723549832909,-250.0,0.00010959,2]
[334776770,1723549832920,-333.31,0.00010959,2]
[334776771,1723549832930,-499.95,0.00010959,2]
[334776772,1723549832940,-804.77253625,0.00010997,2]
[334776773,1723549832950,-31205.27539172,0.00010998,2]
[334776774,1723549832959,-5911.80443329,0.00010999,2]
[334776775,1723549832969,-218.36207156,0.00010999,2]
[334776776,1723549832979,-34397.36230414,0.00010999,2]
[334776777,1723549832988,-34397.36230414,0.00010999,2]
[334776778,1723549832998,-500.0,0.00010999,2]
[334776779,1723549833008,-500.0,0.00010999,2]
[334776780,1723549833017,-500.0,0.00010999,2]
[334776781,1723549833027,-500.0,0.00010999,2]
[334776782,1723549833036,-500.0,0.00010999,2]
[334776783,1723549833045,-500.0,0.00010999,2]
[334776784,1723549833055,-500.0,0.00010999,2]
[334776785,1723549833064,-450.58454444,0.00010999,2]
[334776786,1723549833073,-176.89056483,0.00010999,2]
[334776787,1723549833082,-500.0,0.00010999,2]
[334776788,1723549833091,-500.0,0.00010999,2]
[334776789,1723549833101,-500.0,0.00010999,2]
[334776790,1723549833110,-500.0,0.00010999,2]
[334776791,1723549833119,-500.0,0.00010999,2]
[334776792,1723549833128,-500.0,0.00010999,2]
[334776793,1723549833147,-500.0,0.00010999,2]
[334776794,1723549833156,-500.0,0.00010999,2]
[334776795,1723549833165,-500.0,0.00010999,2]
[334776796,1723549833180,-500.0,0.00010999,2]
[334776797,1723549833189,-500.0,0.00010999,2]
[334776798,1723549833198,-500.0,0.00010999,2]
[334776799,1723549833207,-500.0,0.00010999,2]
[334776800,1723549833217,-500.0,0.00010999,2]
[334776801,1723549833227,-500.0,0.00010999,2]
[334776802,1723549833237,-500.0,0.00010999,2]
[334776803,1723549833246,-500.0,0.00010999,2]
[334776804,1723549833257,-500.0,0.00010999,2]
[334776805,1723549833267,-500.0,0.00010999,2]
[334776806,1723549833277,-319.29859857,0.00010999,2]
[334776807,1723549833286,-500.0,0.00010999,2]
[334776808,1723549833295,-500.0,0.00010999,2]
[334776809,1723549833304,-500.0,0.00010999,2]
[334776810,1723549833313,-500.0,0.00010999,2]
[334776811,1723549833322,-500.0,0.00010999,2]
[334776812,1723549833332,-500.0,0.00010999,2]
[334776813,1723549833341,-500.0,0.00010999,2]
[334776814,1723549833350,-500.0,0.00010999,2]
[334776815,1723549833359,-500.0,0.00010999,2]
[334776816,1723549833369,-500.0,0.00010999,2]
[334776817,1723549833378,-500.0,0.00010999,2]
[334776818,1723549833389,-500.0,0.00010999,2]
[334776819,1723549833398,-500.0,0.00010999,2]
[334776820,1723549833408,-500.0,0.00010999,2]
[334776821,1723549833417,-500.0,0.00010999,2]
[334776822,1723549833427,-500.0,0.00010999,2]
[334776823,1723549833436,-500.0,0.00010999,2]
[334776824,1723549833446,-500.0,0.00010999,2]
[334776825,1723549833455,-500.0,0.00010999,2]
[334776826,1723549833464,-500.0,0.00010999,2]
[334776827,1723549833473,-500.0,0.00010999,2]
[334776828,1723549833482,-500.0,0.00010999,2]
[334776829,1723549833491,-500.0,0.00010999,2]
[334776830,1723549833501,-270.75407649,0.00010999,2]
[334776831,1723549833510,-500.0,0.00010999,2]
[334776832,1723549833519,-500.0,0.00010999,2]
[334776833,1723549833529,-2004.0,0.00011,2]
[334776834,1723549833539,-240370.39157969,0.00011,2]
[334776835,1723549833548,-282648.7117703,0.00011,2]
[334776836,1723549833560,-498.56133196,0.00011,2]
[334776837,1723549833571,-1291.26635915,0.00011,2]
[334776838,1723549833582,-638786.45615565,0.00011,2]
[334776839,1723549833594,-445.14415633,0.00011,2]
[334776855,1723549838310,-10430.94547108,0.00011,2]
[334776856,1723549838321,-7100.04407262,0.00011,2]
[334776857,1723549838332,-1188.16086,0.00011,2]
[334776858,1723549838344,-10057.64443999,0.00011,2]
[334776859,1723549838356,-742.11629914,0.00011,2]
[334776860,1723549838367,-277.0527081,0.00011,2]
[334776861,1723549838378,-255.53745705,0.00011,2]
[334776862,1723549838390,-299.58797889,0.00011,2]
[334776863,1723549838441,-506.89261799,0.00011,2]
[334776864,1723549838453,-702.12138426,0.00011,2]
[334776865,1723549838464,-2665.46919121,0.00011,2]
[334776866,1723549838475,-304.94405594,0.00011,2]
[334776867,1723549838487,-15061.86977785,0.00011,2]
[334776868,1723549838499,-951.56347799,0.00011,2]
[334776869,1723549838555,-2646.2132724,0.00011,2]
[334776870,1723549838580,-38471.46072247,0.00011,2]
[334776871,1723549838591,-887.83016339,0.00011,2]
[334776872,1723549838635,-454.11354937,0.00011,2]
[334776873,1723549838646,-1616.15823984,0.00011,2]
[334776874,1723549838658,-3816.08831386,0.00011,2]
[334776952,1723549840261,-337.374,0.00011,2]
[334776953,1723549840273,-1467.626,0.00011,2]
[334776954,1723549840284,-5438.37680481,0.00011,2]
[334776955,1723549840295,-56708.03801455,0.00011,2]
[334776956,1723549840307,-1447.08866371,0.00011,2]
[334776957,1723549840318,-1487.92434299,0.00011,2]
[334776958,1723549840330,-387.72733961,0.00011,2]
[334776959,1723549840341,-4905.37844259,0.00011,2]
[334776960,1723549840352,-352.75909744,0.00011,2]
[334776961,1723549840364,-342.108,0.00011,2]
[334776962,1723549840409,-884.28,0.00011,2]
[334776963,1723549840425,-389791.96063073,0.00011,2]
[334776964,1723549840436,-693049.7353599,0.00011,2]
[334776965,1723549840491,-18918.55938786,0.00011,2]
[334776966,1723549840503,-1577.464916,0.00011,2]
[334776967,1723549840533,-298.31412405,0.00011,2]
[334776968,1723549840588,-3377.89185886,0.00011,2]
[334776976,1723549843264,-802.06340159,0.00010999,2]
[334776979,1723549843317,-320.26401847,0.00010999,2]
[334776980,1723549843476,-1144.36375668,0.00010999,2]
[334776981,1723549843487,-1963.95623651,0.00010999,2]
[334776982,1723549843535,-568.11178474,0.00010999,2]
[334776983,1723549843545,-282.25966639,0.00010999,2]
[334776984,1723549843554,-3068.41962937,0.00011,2]
[334776992,1723549846461,-768.85,0.00011,2]
[334776993,1723549846516,-850.0,0.00011,2]
[334776994,1723549846681,-432.77116256,0.00011,2]
[334776995,1723549846692,-1190.22883744,0.00011,2]
[334776996,1723549846702,-4414.76149748,0.00011,2]
[334776997,1723549846714,-346.76974357,0.00011,2]
[334776998,1723549846726,-6104.43295754,0.00011,2]
[334776999,1723549846737,-4940.94527216,0.00011,2]
[334777000,1723549846748,-1206.09817827,0.00011,2]
[334777271,1723550270284,235.75,9.767e-05,2]
[334777276,1723550541309,285.34,8.766e-05,2]
[334777284,1723551031389,-764.25,9.767e-05,2]
[334777285,1723551031398,-415.632,0.00010394,2]
[334777286,1723551031411,-18.482744,0.00010394,2]
[334777287,1723551031421,-1000.0,0.00010447,2]
[334777288,1723551031432,-522.91773594,0.00010625,2]
[334777289,1723551031442,-881.66705668,0.00010799,2]
[334777290,1723551031451,-76.93246338,0.000108,2]
[334777291,1723551031462,-486.78060608,0.000108,2]
[334777292,1723551031474,-436.28693054,0.000108,2]
[334777293,1723551031483,-658.60334455,0.000108,2]
[334777294,1723551031512,-250.0,0.00010381,2]
[334777295,1723551031522,-196.45853724,0.000108,2]
[334777296,1723551031534,-1644.93811821,0.000108,2]
[334777297,1723551031548,-184.49621486,0.00010889,2]
[334777298,1723551031566,-522.67520343,0.00010889,2]
[334777299,1723551031608,-75.65952503,0.00010889,2]
[334777300,1723551031619,-150.0,0.00010898,2]
[334777301,1723551031629,-4846.50377497,0.00010899,2]
[334777302,1723551031640,-1038.68259427,0.00010899,2]
[334777303,1723551031651,-1161.35257624,0.00010899,2]
[334777304,1723551031662,-529.24457597,0.00010899,2]
[334777305,1723551031674,-376.37542403,0.00010899,2]
[334777306,1723551031686,-92047.84105452,0.00010899,2]
[334777307,1723551031696,-3392.89749572,0.00010899,2]
[334777308,1723551031706,-14159.1721,0.000109,2]
[334777309,1723551031716,-281.1116,0.000109,2]
[334777310,1723551031725,-33045.9272,0.000109,2]
[334777311,1723551031735,-492.87,0.000109,2]
[334777313,1723551031745,-500.0,0.000109,2]
[334777315,1723551031754,-152.67384192,0.000109,2]
[334777317,1723551031764,-100090.18061911,0.000109,2]
[334777318,1723551031773,-169.27176964,0.000109,2]
[334777320,1723551031783,-499.99,0.000109,2]
[334777322,1723551031792,-404.73712886,0.000109,2]
[334777324,1723551031801,-250.0,0.00010959,2]
[334777326,1723551031810,-784.97,0.0001099,2]
[334777328,1723551031820,-490.42550481,0.00010997,2]
[334777330,1723551031830,-300.02,0.00010999,2]
[334777332,1723551031839,-822.05485626,0.00010999,2]
[334777334,1723551031848,-500.0,0.00010999,2]
[334777336,1723551031857,-182.49432857,0.00010999,2]
[334777338,1723551031866,-500.0,0.00010999,2]
[334777340,1723551031876,-500.0,0.00010999,2]
[334777341,1723551031885,-500.0,0.00010999,2]
[334777343,1723551031894,-500.0,0.00010999,2]
[334777345,1723551031904,-500.0,0.00010999,2]
[334777347,1723551031913,-500.0,0.00010999,2]
[334777349,1723551031922,-500.0,0.00010999,2]
[334777351,1723551031931,-500.0,0.00010999,2]
[334777353,1723551031941,-500.0,0.00010999,2]
[334777355,1723551031951,-483.18178694,0.00010999,2]
[334777356,1723551031960,-500.0,0.00010999,2]
[334777357,1723551031970,-500.0,0.00010999,2]
[334777358,1723551031979,-500.0,0.00010999,2]
[334777359,1723551031988,-500.0,0.00010999,2]
[334777360,1723551031997,-500.0,0.00010999,2]
[334777361,1723551032007,-500.0,0.00010999,2]
[334777362,1723551032016,-500.0,0.00010999,2]
[334777363,1723551032026,-500.0,0.00010999,2]
[334777364,1723551032035,-500.0,0.00010999,2]
[334777365,1723551032044,-500.0,0.00010999,2]
[334777366,1723551032053,-500.0,0.00010999,2]
[334777367,1723551032063,-500.0,0.00010999,2]
[334777368,1723551032072,-500.0,0.00010999,2]
[334777369,1723551032081,-500.0,0.00010999,2]
[334777370,1723551032090,-500.0,0.00010999,2]
[334777371,1723551032099,-500.0,0.00010999,2]
[334777372,1723551032109,-500.0,0.00010999,2]
[334777373,1723551032118,-500.0,0.00010999,2]
[334777374,1723551032127,-500.0,0.00010999,2]
[334777375,1723551032136,-500.0,0.00010999,2]
[334777376,1723551032147,-500.0,0.00010999,2]
[334777377,1723551032156,-500.0,0.00010999,2]
[334777378,1723551032165,-275.0,0.00010999,2]
[334777379,1723551032175,-500.0,0.00010999,2]
[334777380,1723551032184,-500.0,0.00010999,2]
[334777381,1723551032194,-500.0,0.00010999,2]
[334777382,1723551032203,-500.0,0.00010999,2]
[334777383,1723551032214,-500.0,0.00010999,2]
[334777384,1723551032223,-627.5,0.00010999,2]
[334777385,1723551032234,-1585.0,0.00011,2]
[334777386,1723551032245,-44812.63792614,0.00011,2]
[334777390,1723551037738,-271.07,9.922e-05,2]
[334777391,1723551037748,-500.0,0.000108,2]
[334777392,1723551037758,-207.2180428,0.000109,2]
[334777393,1723551037768,-2202.7828422,0.00011,2]
[334777499,1723551039465,-1048.21934277,0.00011,2]
[334777505,1723551039519,-360.52271778,0.00011,2]
[334777517,1723551039627,-1452.1470157,0.00011,2]
[334777519,1723551039639,-391.2134018,0.00011,2]
[334777524,1723551039680,-2094.17295339,0.00011,2]
[334777550,1723551039943,-714.13926867,0.00011,2]
[334777783,1723551042458,-10105.05987561,0.00011,2]
[334777808,1723551042747,-10988.3773015,0.00011,2]
[334777810,1723551042759,-320.67306707,0.00011,2]
[334777845,1723551045511,-557.8322401,0.000109,2]
[334777848,1723551045526,-387.7,0.000109,2]
[334777852,1723551045563,-54.4677599,0.000109,2]
[334777854,1723551045572,-1005.0,0.000109,2]
[334777855,1723551045581,-2630.99849163,0.00011,2]
[334777856,1723551045617,-481.61185414,0.00011,2]
[334777857,1723551045631,-3883.97464378,0.00011,2]
[334777858,1723551045931,-533.69495436,0.00011,2]
[334777859,1723551045954,-1874.06416438,0.00011,2]
[334777860,1723551045965,-879.9737992,0.00011,2]
[334777861,1723551045976,-456.76985683,0.00011,2]
[334777862,1723551045987,-3972.33381361,0.00011,2]
[334777863,1723551045999,-7279.43485111,0.00011,2]
[334777864,1723551046012,-432.00902886,0.00011,2]
[334777865,1723551046024,-4016.93552,0.00011,2]
[334777872,1723551517373,277.04,9.604e-05,2]
[334777873,1723552033630,263.18,8.349e-05,2]
[334777874,1723552100524,-1257.62857871,0.0001012,2]
[334777876,1723552100551,-1257.62857871,0.0001012,2]
[334777879,1723552100580,-230.54,0.00010545,2]
[334777881,1723552100608,-490.26138161,0.00010564,2]
[334777883,1723552100641,-309.73861839,0.00010564,2]
[334777884,1723552100671,-263.18,0.00010613,2]
[334777885,1723552100699,-244.66931876,0.00010625,2]
[334777887,1723552100729,-164.17,0.00010693,2]
[334777888,1723552100760,-88.69302613,0.000107,2]
[334777889,1723552100792,-911.30697387,0.000107,2]
[334777890,1723552100818,-150.0,0.00010798,2]
[334777891,1723552100847,-2174.75156516,0.00010799,2]
[334777892,1723552100878,-1330.10559242,0.00010799,2]
[334777893,1723552100909,-1905.95294661,0.00010799,4]
[334777894,1723552100945,-3236.05853903,0.00010799,4]
[334777895,1723552100980,-3236.05853903,0.00010799,4]
[334777896,1723552125394,-236.29999998,0.0001012,2]
[334777913,1723552232145,-294.86504506,0.0001012,2]
[334777914,1723552232154,-298.51925474,0.00010798,2]
[334777915,1723552232258,-1.48074526,0.00010798,2]
[334777916,1723552232268,-606.95369474,0.00010799,4]
[334777946,1723552237926,-4140.02114966,0.00010799,4]
[334777947,1723552237988,-5373.70086041,0.00010799,4]
[334777950,1723552239724,-208.177198,0.00010744,2]
[334777951,1723552239734,-219.44387703,0.00010799,4]
[334777952,1723552239745,-2139.6359054,0.00010799,4]
[334777953,1723552239758,-889.3818253,0.00010799,4]
[334777965,1723552243391,-6205.47250096,0.00010799,4]
[334777969,1723552245795,-2666.39336024,0.00010799,4]
[334777975,1723552614371,253.55,8.293e-05,2]
[334777976,1723552719693,14361.34675719,8.293e-05,2]
[334777977,1723552748659,1286.64451205,8.293e-05,2]
[334777978,1723552801747,14376.02744277,8.293e-05,2]
[334777979,1723552856778,183732.39047433,8.293e-05,2]
[334777981,1723553181118,240.87,8.219e-05,2]
[334777983,1723553296756,-1961.68,9.953e-05,2]
[334777984,1723553296779,-18057.47786805,9.962e-05,2]
[334777985,1723553296803,-5700.6,0.00010043,2]
[334777986,1723553296825,-443.6591016,0.00010052,2]
[334777987,1723553296847,-640.0,0.00010142,2]
[334777988,1723553296870,-360.0,0.00010352,2]
[334777989,1723553296895,-4380.26,0.00010374,2]
[334777990,1723553296917,-11496.0,0.000104,3]
[334777991,1723553296940,-240.87,0.00010477,2]
[334777992,1723553296961,-150.0,0.00010521,2]
[334777993,1723553296985,-174.19,0.00010521,2]
[334777994,1723553297008,-1000.0,0.00010599,2]
[334777995,1723553297029,-2406.94,0.00010599,2]
[334777996,1723553297052,-388.07971391,0.00010698,2]
[334777997,1723553297075,-150.0,0.00010698,2]
[334777998,1723553297097,-98861.9724,0.00010699,2]
[334777999,1723553297119,-383.747,0.00010699,2]
[334778000,1723553297144,-158420.95205101,0.00010699,2]
[334778010,1723553431877,-1437.62195802,0.000105,5]
[334778011,1723553431889,-766.71121484,0.000105,5]
[334778012,1723553431937,-9294.66682714,0.000105,5]
[334778013,1723553431946,-300.0,0.00010598,2]
[334778014,1723553431956,-500.0,0.00010599,2]
[334778015,1723553431966,-100000.0,0.00010599,2]
[334778016,1723553431975,-63290.66769636,0.00010699,2]
[334778017,1723553431987,-1386.16050684,0.00010699,2]
[334778018,1723553431998,-955.65762198,0.00010699,2]
[334778019,1723553432016,-799.720536,0.00010699,2]
[334778020,1723553432027,-990.58117053,0.00010699,2]
[334778021,1723553432038,-676.1,0.00010699,2]
[334778022,1723553432058,-2871.78515676,0.00010699,2]
[334778023,1723553432069,-1353.76120749,0.00010699,2]
[334778024,1723553432080,-1533.16988502,0.00010699,2]
[334778025,1723553432092,-10808.08059513,0.00010699,2]
[334778026,1723553432103,-732.10144154,0.00010699,2]
[334778027,1723553432118,-1181.26213134,0.00010699,2]
[334778028,1723553432128,-920.05072639,0.00010799,4]
[334778029,1723553432139,-1900.0,0.00010799,4]
[334778032,1723553437997,-257.0868,0.00010799,4]
[334778033,1723553438174,-403.02444846,0.00010799,4]
[334778034,1723553438185,-22589.51538281,0.00010799,4]
[334778078,1723553439860,-659.94979241,0.00010799,4]
[334778079,1723553439924,-525.2406,0.00010799,4]
[334778080,1723553439937,-260.27892,0.00010799,4]
[334778081,1723553440096,-1704.39223459,0.00010799,4]
[334778140,1723553446747,-18904.815072,0.00010799,4]
[334778141,1723553446983,-1138.65459664,0.00010799,4]
[334778142,1723553446994,-1250.0945842,0.00010799,4]
[334778144,1723553447006,-2218.84058109,0.00010799,4]
[334778146,1723553513919,172.13304925,5e-05,2]
[334778148,1723553557619,485.74520944,5e-05,2]
[334778149,1723553559582,425.98331669,5e-05,2]
[334778150,1723553564049,698.82494451,5e-05,2]
[334778151,1723553565078,155.0,5e-05,2]
[334778152,1723553567205,180.52653024,5e-05,2]
[334778153,1723553567858,790.80331291,5e-05,2]
[334778154,1723553568072,173.90652039,5e-05,2]
[334778155,1723553568741,591.20509693,5e-05,2]
[334778156,1723553569510,442.16144251,5e-05,2]
[334778157,1723553570420,549.6479733,5e-05,2]
[334778158,1723553572644,500.0,5e-05,2]
[334778159,1723553573564,264.1837097,5e-05,2]
[334778160,1723553573596,500.0,5e-05,2]
[334778161,1723553573623,268.51296991,5e-05,2]
[334778162,1723553573662,500.0,5e-05,2]
[334778163,1723553573905,500.0,5e-05,2]
[334778164,1723553574236,500.0,5e-05,2]
[334778165,1723553574711,500.0,5e-05,2]
[334778166,1723553575093,500.0,5e-05,2]
[334778167,1723553575426,418.11592422,5e-05,2]
[334778168,1723553575449,81.88407578,5e-05,2]
[334778169,1723553575507,227.78421077,5e-05,2]
[334778170,1723553575766,500.0,5e-05,2]
[334778171,1723553576105,500.0,5e-05,2]
[334778172,1723553576170,155.0,5e-05,2]
[334778173,1723553576454,500.0,5e-05,2]
[334778174,1723553576591,155.2081123,5e-05,2]
[334778175,1723553576814,500.0,5e-05,2]
[334778176,1723553577090,155.0,5e-05,2]
[334778177,1723553577173,500.0,5e-05,2]
[334778178,1723553577516,500.0,5e-05,2]
[334778179,1723553577844,500.0,5e-05,2]
[334778180,1723553578258,500.0,5e-05,2]
[334778181,1723553578641,500.0,5e-05,2]
[334778182,1723553579005,500.0,5e-05,2]
[334778183,1723553579331,500.0,5e-05,2]
[334778184,1723553579489,559.80492309,5e-05,2]
[334778185,1723553579671,500.0,5e-05,2]
[334778186,1723553580030,500.0,5e-05,2]
[334778187,1723553580354,500.0,5e-05,2]
[334778188,1723553580676,500.0,5e-05,2]
[334778189,1723553581014,500.0,5e-05,2]
[334778190,1723553581408,500.0,5e-05,2]
[334778191,1723553581743,165.31867806,5e-05,2]
[334778192,1723553581764,334.68132194,5e-05,2]
[334778193,1723553582117,500.0,5e-05,2]
[334778194,1723553582458,500.0,5e-05,2]
[334778195,1723553583085,245.19674149,5e-05,2]
[334778196,1723553584887,500.0,5e-05,2]
[334778197,1723553585435,500.0,5e-05,2]
[334778198,1723553585744,500.0,5e-05,2]
[334778199,1723553586073,500.0,5e-05,2]
[334778200,1723553586445,500.0,5e-05,2]
[334778201,1723553586784,500.0,5e-05,2]